bitfinex/quotes_BTCUSD_20251114
["timestamp","ask_amount","ask_price","bid_price","bid_amount"]
[1763135514946,0.00049,97147.0,97139.0,0.06788]
[1763135515185,0.04901,97140.0,97139.0,0.06788]
[1763135515433,0.04901,97140.0,97130.0,0.20590887]
[1763135515684,0.04901,97140.0,97136.0,0.20589688]
[1763135515900,0.04901,97140.0,97131.0,0.06788]
[1763135515901,0.04901,97140.0,97138.0,0.20589097]
[1763135516106,0.04901,97140.0,97139.0,0.001]
[1763135516785,0.323,97139.0,97104.0,0.06788]
[1763135517000,0.09974,97105.0,97103.0,0.2059648]
[1763135517218,0.03518,97129.0,97100.0,0.01029866]
[1763135517417,0.03518,97129.0,97104.0,0.10479654]
[1763135517588,0.08468,97129.0,97110.0,0.20595075]
[1763135517815,0.08468,97129.0,97114.0,0.20594285]
[1763135518098,0.0495,97128.0,97114.0,0.20594315]
[1763135518356,0.00049,97115.0,97114.0,0.20594315]
[1763135518729,0.00049,97115.0,97108.0,0.06788]
[1763135518978,0.04901,97123.0,97121.0,0.20592813]
[1763135519183,0.35818,97129.0,97108.0,0.06788]
[1763135519184,0.03518,97129.0,97122.0,0.20592527]
[1763135519391,0.03518,97129.0,97125.0,0.20591985]
[1763135519622,0.03518,97129.0,97127.0,0.2059142]
[1763135520445,0.00049,97128.0,97120.0,0.06788]
[1763135520663,0.0495,97121.0,97114.0,0.001]
[1763135520898,0.00049,97123.0,97114.0,0.001]
[1763135521105,0.04901,97115.0,97114.0,0.001]
[1763135521312,0.04901,97115.0,97098.0,0.00190096]
[1763135521517,0.04901,97115.0,97102.0,0.20596802]
[1763135521721,0.07002,97103.0,97098.0,0.00190096]
[1763135521945,0.01404,97099.0,97098.0,0.00190096]
[1763135522148,0.03518,97103.0,97098.0,0.00190096]
[1763135522149,0.03518,97103.0,97102.0,0.20596898]
[1763135522382,0.03518,97103.0,97098.0,0.00190096]
[1763135522591,0.0495,97099.0,97098.0,0.00190096]
[1763135524112,0.448888,97099.0,97098.0,0.00190096]
[1763135524324,0.44042,97099.0,97098.0,0.00190096]
[1763135525197,0.323,97077.0,97070.0,0.0004]
[1763135525412,0.06191,97071.0,97070.0,0.00053592]
[1763135528329,0.38491,97071.0,97070.0,0.00053592]
[1763135528557,0.06291,97071.0,97070.0,0.00053592]
[1763135528956,0.06191,97071.0,97070.0,0.00053592]
[1763135529206,0.32603,97079.0,97070.0,0.20657067]
[1763135529207,0.01497,97072.0,97070.0,0.20657067]
[1763135529411,0.0475,97071.0,97070.0,0.00053592]
[1763135529863,0.0465,97071.0,97070.0,0.00053592]
[1763135530292,0.01497,97072.0,97070.0,0.00053592]
[1763135530954,0.0465,97071.0,97070.0,0.00053592]
[1763135531139,0.48044354,97071.0,97070.0,0.00053592]
[1763135531490,0.48044354,97071.0,97070.0,0.0012839]
[1763135532375,0.47429654,97071.0,97070.0,0.0012839]
[1763135532813,0.47529654,97071.0,97070.0,0.0012839]
[1763135533274,0.3695,97071.0,97070.0,0.0012839]
[1763135533743,0.0465,97071.0,97070.0,0.0012839]
[1763135534867,0.0475,97071.0,97070.0,0.0012839]
[1763135535320,0.0465,97071.0,97070.0,0.0012839]
[1763135535984,0.01497,97072.0,97070.0,0.0012839]
[1763135536193,0.01497,97072.0,97070.0,0.00053592]
[1763135537051,0.0465,97071.0,97070.0,0.00053592]
[1763135537271,0.01497,97072.0,97070.0,0.00053592]
[1763135537475,0.01497,97080.0,97079.0,0.20601777]
[1763135537700,0.06447,97080.0,97070.0,0.00053592]
[1763135537936,0.01497,97080.0,97078.0,0.20601864]
[1763135538158,0.01497,97087.0,97083.0,0.20600801]
[1763135538385,0.01497,97087.0,97078.0,0.06792]
[1763135538656,0.01497,97087.0,97071.0,0.10479654]
[1763135538657,0.0495,97086.0,97079.0,0.06792]
[1763135538881,0.0495,97086.0,97071.0,0.10479654]
[1763135539092,0.0495,97086.0,97072.0,0.06792]
[1763135539308,0.0495,97086.0,97073.0,0.06792]
[1763135539524,0.02575063,97085.0,97083.0,0.001]
[1763135539745,0.01849434,97084.0,97083.0,0.001]
[1763135539979,0.0403148,97084.0,97070.0,0.00053592]
[1763135540196,0.0495,97071.0,97070.0,0.00053592]
[1763135540653,0.39825434,97071.0,97070.0,0.00053592]
[1763135540876,0.39164609,97071.0,97070.0,0.00053592]
[1763135541110,0.64109958,97071.0,97070.0,0.00053592]
[1763135542112,0.01030396,97050.0,97020.0,0.0004]
[1763135542387,0.09191,97021.0,97020.0,0.00085409]
[1763135542582,0.48283,97021.0,97020.0,0.00085409]
[1763135543299,0.49267488,97021.0,97020.0,0.00085409]
[1763135543825,0.49367488,97021.0,97020.0,0.00085409]
[1763135545086,0.48283,97021.0,97020.0,0.00085409]
[1763135545306,0.48383,97021.0,97020.0,0.00085409]
[1763135545701,0.48283,97021.0,97020.0,0.00085409]
[1763135546136,0.48383,97021.0,97020.0,0.00085409]
[1763135546407,0.03089,97021.0,97020.0,0.00085409]
[1763135546582,0.001,97021.0,97020.0,0.00085409]
[1763135546796,0.001,97021.0,97020.0,0.01121058]
[1763135547741,0.001,97021.0,97020.0,0.00293884]
[1763135547959,0.24266954,97073.0,97020.0,0.00293884]
[1763135547960,0.0495,97055.0,97020.0,0.21938905]
[1763135548181,0.01915719,97054.0,97046.0,0.20608639]
[1763135548431,0.01915719,97053.0,97036.0,0.06796]
[1763135548681,0.0495,97054.0,97037.0,0.06796]
[1763135548968,0.02249024,97053.0,97037.0,0.27406627]
[1763135549248,0.02282624,97052.0,97037.0,0.06796]
[1763135549612,0.001,97055.0,97037.0,0.06796]
[1763135549613,0.02575859,97055.0,97037.0,0.06796]
[1763135549928,0.0495,97059.0,97038.0,0.01034374]
[1763135550365,0.01399349,97058.0,97037.0,0.06796]
[1763135550565,0.01399349,97058.0,97038.0,0.20610392]
[1763135550766,0.01399349,97058.0,97037.0,0.06796]
[1763135551030,0.01399349,97058.0,97045.0,0.20608885]
[1763135551353,0.02989,97062.0,97037.0,0.06796]
[1763135551587,0.02989,97062.0,97038.0,0.01034226]
[1763135551588,0.0495,97058.0,97038.0,0.01034226]
[1763135551860,0.02989,97062.0,97038.0,0.01034226]
[1763135551987,0.07939,97062.0,97037.0,0.27406564]
[1763135552395,0.07589792,97061.0,97030.0,0.01030609]
[1763135552621,0.70695898,97060.0,97033.0,0.06796]
[1763135552875,0.0095998,97059.0,97037.0,0.20610585]
[1763135553071,0.02109149,97058.0,97036.0,0.20610783]
[1763135553383,0.00960522,97057.0,97033.0,0.06796]
[1763135553661,0.01338899,97056.0,97033.0,0.06796]
[1763135553871,0.01567574,97058.0,97033.0,0.06796]
[1763135554076,0.00960522,97057.0,97055.0,0.00114887]
[1763135554277,0.01373695,97056.0,97039.0,0.01033939]
[1763135554452,0.0495,97059.0,97039.0,0.01033939]
[1763135554453,0.01676174,97055.0,97039.0,0.01033939]
[1763135554656,0.01514549,97054.0,97033.0,0.06796]
[1763135554877,0.10479654,97053.0,97024.0,0.20613246]
[1763135555073,0.02575779,97058.0,97020.0,0.01070715]
[1763135555074,0.60814081,97050.0,97027.0,0.01034597]
[1763135555273,0.40979474,97049.0,97027.0,0.00045409]
[1763135555478,0.45929474,97049.0,97027.0,0.00045409]
[1763135555660,0.06758006,97048.0,97027.0,0.00045409]
[1763135555865,0.323,97039.0,97027.0,0.00045409]
[1763135556066,0.0495,97028.0,97027.0,0.00045409]
[1763135556294,0.01975687,97038.0,97027.0,0.00045409]
[1763135556528,0.323,97039.0,97027.0,0.00045409]
[1763135556529,0.0739098,97037.0,97027.0,0.00045409]
[1763135556753,0.01368217,97036.0,97027.0,0.00045409]
[1763135556958,0.39096,97049.0,97027.0,0.00045409]
[1763135557158,0.06796,97049.0,97042.0,0.20609491]
[1763135557361,0.39096,97057.0,97050.0,0.20607757]
[1763135557571,0.03536729,97056.0,97032.0,0.06796]
[1763135557775,0.00960897,97055.0,97036.0,0.20610715]
[1763135557995,0.001,97039.0,97030.0,0.01030609]
[1763135558200,0.001,97039.0,97038.0,0.20610482]
[1763135558491,0.02575859,97055.0,97030.0,0.01030609]
[1763135558652,0.0495,97069.0,97046.0,0.03799]
[1763135558856,0.0495,97069.0,97047.0,0.06796]
[1763135559136,0.60814081,97060.0,97047.0,0.06796]
[1763135559340,0.60814081,97060.0,97049.0,0.20607995]
[1763135559546,0.0495,97069.0,97058.0,0.206061]
[1763135559678,0.0495,97069.0,97057.0,0.20606291]
[1763135559890,0.60814081,97080.0,97047.0,0.06796]
[1763135560109,0.00961101,97074.0,97072.0,0.20603065]
[1763135560296,0.00961334,97073.0,97070.0,0.06796]
[1763135560529,0.00961343,97072.0,97070.0,0.06796]
[1763135560730,0.01497,97087.0,97070.0,0.06796]
[1763135560985,0.60814081,97080.0,97070.0,0.06796]
[1763135561369,0.06832615,97079.0,97065.0,0.06796]
[1763135561573,0.01497,97087.0,97065.0,0.06809574]
[1763135561574,0.06502,97066.0,97065.0,0.06809574]
[1763135561708,0.06502,97066.0,97065.0,0.00013574]
[1763135562943,0.07514857,97066.0,97065.0,0.00013574]
[1763135563158,0.06502,97066.0,97065.0,0.00013574]
[1763135563605,0.06796,97073.0,97065.0,0.00013574]
[1763135563819,0.323,97074.0,97065.0,0.00013574]
[1763135564448,0.001,97066.0,97065.0,0.00013574]
[1763135565002,0.01333632,97071.0,97065.0,0.00013574]
[1763135565203,0.01406671,97070.0,97065.0,0.00013574]
[1763135565405,0.01406671,97070.0,97052.0,0.206074]
[1763135565609,0.01406671,97070.0,97051.0,0.06796]
[1763135565610,0.60814081,97062.0,97051.0,0.06796]
[1763135565810,0.93114081,97061.0,97051.0,0.06796]
[1763135566642,0.93114081,97061.0,97052.0,0.01033801]
[1763135566848,0.41198,97068.0,97052.0,0.0103378]
[1763135567012,0.03987,97063.0,97062.0,0.20605386]
[1763135567209,0.03987,97063.0,97051.0,0.06796]
[1763135567407,0.03987,97063.0,97052.0,0.06796]
[1763135567814,0.03987,97063.0,97053.0,0.07829727]
[1763135568031,0.03987,97063.0,97060.0,0.20605647]
[1763135568265,0.03987,97063.0,97061.0,0.20605513]
[1763135568469,0.03987,97063.0,97056.0,0.20606543]
[1763135568739,0.03987,97063.0,97058.0,0.20606063]
[1763135568970,0.03987,97063.0,97061.0,0.20605507]
[1763135569401,0.03987,97063.0,97058.0,0.20606187]
[1763135569596,0.03987,97063.0,97057.0,0.20606329]
[1763135569735,0.03987,97063.0,97053.0,0.27403206]
[1763135569934,0.03987,97063.0,97030.0,0.01030609]
[1763135569935,0.07525673,97062.0,97030.0,0.01030609]
[1763135570133,0.60814081,97060.0,97040.0,0.01030502]
[1763135570337,0.01825049,97059.0,97038.0,0.20610421]
[1763135570654,0.06775049,97059.0,97039.0,0.2061014]
[1763135571014,0.06775049,97059.0,97058.0,0.00106868]
[1763135571234,0.60814081,97060.0,97058.0,0.00106868]
[1763135571446,0.323,97062.0,97041.0,0.20609679]
[1763135571447,0.0495,97059.0,97041.0,0.06792]
[1763135571658,0.60814081,97051.0,97041.0,0.06792]
[1763135571886,0.0495,97059.0,97041.0,0.06792]
[1763135572121,0.03987,97063.0,97042.0,0.15121654]
[1763135572341,0.03987,97063.0,97043.0,0.01034044]
[1763135572573,0.00013564,97070.0,97069.0,0.206039]
[1763135572787,0.00013564,97070.0,97069.0,0.273959]
[1763135572991,0.00013564,97070.0,97067.0,0.04642]
[1763135573195,0.00013564,97070.0,97069.0,0.06792]
[1763135573400,0.00013564,97070.0,97059.0,0.20605994]
[1763135573546,0.00013564,97070.0,97061.0,0.20605497]
[1763135573764,0.00013564,97070.0,97040.0,0.01030502]
[1763135573765,0.0495,97069.0,97040.0,0.01030502]
[1763135573966,0.60814081,97060.0,97042.0,0.10479654]
[1763135574166,0.0495,97069.0,97043.0,0.06792]
[1763135574420,0.06563775,97068.0,97051.0,0.20607648]
[1763135574591,0.0495,97068.0,97043.0,0.06792]
[1763135574981,0.06066637,97067.0,97043.0,0.06792]
[1763135575181,0.60814081,97060.0,97044.0,0.06792]
[1763135575398,0.0495,97067.0,97046.0,0.20608648]
[1763135575610,0.60814081,97060.0,97030.0,0.33330609]
[1763135575877,0.60814081,97050.0,97031.0,0.06792]
[1763135576099,0.60814081,97050.0,97032.0,0.06792]
[1763135576314,0.08897,97049.0,97033.0,0.0103464]
[1763135576520,0.08897,97049.0,97032.0,0.06792]
[1763135576940,0.08897,97049.0,97034.0,0.20611216]
[1763135577112,0.08897,97049.0,97036.0,0.20610757]
[1763135577312,0.08897,97049.0,97048.0,0.00133599]
[1763135577704,0.08986,97049.0,97048.0,0.00133599]
[1763135579795,0.00089,97049.0,97048.0,0.00133599]
[1763135580021,0.00089,97049.0,97048.0,0.20841957]
[1763135580455,0.00089,97049.0,97048.0,0.00233599]
[1763135580687,0.03987,97058.0,97057.0,0.20606447]
[1763135580899,0.00013564,97070.0,97069.0,0.206039]
[1763135581113,0.00013564,97070.0,97057.0,0.06792]
[1763135581114,0.00062564,97070.0,97057.0,0.06792]
[1763135581337,0.00062564,97070.0,97069.0,0.206039]
[1763135581566,0.00062564,97070.0,97020.0,0.0004]
[1763135581567,0.06105,97047.0,97020.0,0.0004]
[1763135581801,0.04897,97021.0,97020.0,0.0004]
[1763135582031,0.06792,97042.0,97020.0,0.0004]
[1763135582265,0.05548,97048.0,97021.0,0.04698]
[1763135582487,0.05548,97048.0,97021.0,0.04770901]
[1763135582711,0.05548,97048.0,97029.0,0.2061234]
[1763135582927,0.05548,97048.0,97030.0,0.27476631]
[1763135583148,0.05548,97048.0,97030.0,0.00072502]
[1763135583149,0.05561559,97048.0,97030.0,0.00072502]
[1763135583379,0.05561559,97048.0,97021.0,0.06792]
[1763135583380,0.00055,97031.0,97021.0,0.06792]
[1763135583573,0.00055,97031.0,97022.0,0.00073163]
[1763135583777,0.05493,97021.0,97020.0,0.0004]
[1763135584829,0.0011,97030.0,97020.0,0.0004]
[1763135585021,0.60814081,97040.0,97020.0,0.0004]
[1763135585022,0.66362081,97040.0,97020.0,0.0004]
[1763135585224,0.66362081,97040.0,97025.0,0.20613177]
[1763135585430,0.05548,97040.0,97020.0,0.0004]
[1763135585640,0.05548,97039.0,97020.0,0.0004]
[1763135586064,0.05548,97039.0,97021.0,0.0477098]
[1763135586255,0.00013559,97048.0,97043.0,0.2060922]
[1763135586396,0.00013559,97048.0,97046.0,0.2060866]
[1763135586599,0.00013559,97048.0,97047.0,0.00136272]
[1763135587008,0.00013559,97048.0,97047.0,0.0020829]
[1763135587215,0.00013559,97048.0,97047.0,0.00136272]
[1763135588621,0.00013559,97048.0,97047.0,0.20744843]
[1763135588970,1.69823559,97048.0,97047.0,0.20744843]
[1763135589407,1.69823559,97048.0,97047.0,0.00136272]
[1763135589841,1.69823559,97048.0,97047.0,0.00236272]
[1763135590052,1.75371559,97048.0,97047.0,0.00236272]
[1763135590265,2.07671559,97048.0,97047.0,0.00236272]
[1763135590464,2.18038497,97048.0,97047.0,0.00236272]
[1763135590893,2.07671559,97048.0,97047.0,0.00136272]
[1763135591510,2.1990679,97048.0,97047.0,0.00136272]
[1763135592902,2.2000679,97048.0,97047.0,0.00136272]
[1763135593449,2.12013433,97048.0,97047.0,0.00136272]
[1763135593586,2.12213433,97048.0,97047.0,0.00136272]
[1763135593997,2.15471685,97048.0,97047.0,0.00136272]
[1763135594397,2.15471685,97048.0,97020.0,0.0004]
[1763135594398,0.20613216,97026.0,97020.0,0.0004]
[1763135594600,0.00999999,97040.0,97020.0,0.0004]
[1763135594601,0.52669528,97021.0,97020.0,0.0004]
[1763135595413,0.48327654,97021.0,97020.0,0.0004]
[1763135595624,0.05548,97021.0,97020.0,0.0004]
[1763135595796,0.001,97026.0,97023.0,0.20613458]
[1763135596162,0.001,97026.0,97024.0,0.00073239]
[1763135596346,0.02498774,97043.0,97027.0,0.2061274]
[1763135596490,0.05548,97044.0,97030.0,0.20612181]
[1763135596696,0.05548,97044.0,97031.0,0.00072579]
[1763135596915,0.02576177,97043.0,97020.0,0.01070715]
[1763135597117,0.02576177,97043.0,97022.0,0.20613746]
[1763135597337,0.60814081,97040.0,97021.0,0.20614004]
[1763135597698,0.60814081,97040.0,97020.0,0.0004]
[1763135597699,0.00055,97022.0,97020.0,0.0004]
[1763135597865,0.60814081,97031.0,97020.0,0.0004]
[1763135597866,0.05548,97021.0,97020.0,0.0004]
[1763135598492,0.37848,97021.0,97020.0,0.0004]
[1763135599118,0.42189874,97021.0,97020.0,0.0004]
[1763135599869,0.42289874,97021.0,97020.0,0.0004]
[1763135600095,0.52656812,97021.0,97020.0,0.0004]
[1763135600271,0.52556812,97021.0,97020.0,0.0004]
[1763135600475,0.42189874,97021.0,97020.0,0.0004]
[1763135600851,0.42289874,97021.0,97020.0,0.0004]
[1763135601032,0.45506525,97021.0,97020.0,0.0004]
[1763135601643,0.42289874,97021.0,97020.0,0.0004]
[1763135601847,0.49085874,97021.0,97020.0,0.0004]
[1763135602068,0.48985874,97021.0,97020.0,0.0004]
[1763135602465,0.49185874,97021.0,97020.0,0.0004]
[1763135603829,0.52402525,97021.0,97020.0,0.0004]
[1763135605255,0.52402525,97021.0,97020.0,0.00112184]
[1763135606064,0.52202525,97021.0,97020.0,0.00112184]
[1763135606270,0.52502525,97021.0,97020.0,0.00112184]
[1763135606469,0.62869463,97021.0,97020.0,0.00112184]
[1763135606877,0.57258092,97011.0,97010.0,0.0004]
[1763135607089,0.67640743,97011.0,97010.0,0.0004]
[1763135607500,0.5725873,97008.0,97000.0,0.0004]
[1763135607816,0.57260218,97001.0,97000.0,0.0004]
[1763135607936,0.64142765,97001.0,97000.0,0.0004]
[1763135608140,0.75005317,97001.0,97000.0,0.0004]
[1763135608337,0.75994705,97001.0,97000.0,0.0004]
[1763135608586,0.81635362,97001.0,97000.0,0.0004]
[1763135608792,0.75994705,97001.0,97000.0,0.0004]
[1763135608999,0.72778054,97001.0,97000.0,0.0004]
[1763135609348,0.75994705,97001.0,97000.0,0.0004]
[1763135609552,0.323,96971.0,96970.0,0.0004]
[1763135609752,0.39169,96971.0,96970.0,0.0004]
[1763135610192,0.11210874,96971.0,96970.0,0.0004]
[1763135610608,0.11224416,96971.0,96970.0,0.0004]
[1763135610807,0.2170407,96971.0,96970.0,0.0004]
[1763135611221,0.64371008,96971.0,96970.0,0.0004]
[1763135611642,0.61844143,96971.0,96970.0,0.0004]
[1763135612520,0.62044143,96971.0,96970.0,0.0004]
[1763135612726,0.55248143,96971.0,96970.0,0.0004]
[1763135612960,0.62044143,96971.0,96970.0,0.0017376]
[1763135613166,0.4720807,96971.0,96970.0,0.0017376]
[1763135613337,0.74628792,96971.0,96970.0,0.0017376]
[1763135613570,0.8499573,96971.0,96970.0,0.0017376]
[1763135613715,0.74628792,96971.0,96970.0,0.0017376]
[1763135613905,0.5400407,96971.0,96970.0,0.0017376]
[1763135614101,0.00086542,96971.0,96970.0,0.0017376]
[1763135614549,0.00286542,96971.0,96970.0,0.0017376]
[1763135615363,0.02864632,96971.0,96970.0,0.0017376]
[1763135616160,0.02664632,96971.0,96970.0,0.0017376]
[1763135616567,0.02864632,96971.0,96970.0,0.0017376]
[1763135616929,0.40457061,96971.0,96970.0,0.0017376]
[1763135617139,0.42220845,96971.0,96970.0,0.0017376]
[1763135617754,0.36728416,96971.0,96970.0,0.0017376]
[1763135617959,0.04428416,96971.0,96970.0,0.0017376]
[1763135618155,0.27631228,96971.0,96970.0,0.0017376]
[1763135618360,0.25053138,96971.0,96970.0,0.0017376]
[1763135619057,0.04528416,96971.0,96970.0,0.0017376]
[1763135619261,0.07106506,96971.0,96970.0,0.0017376]
[1763135619683,0.07006506,96971.0,96970.0,0.0017376]
[1763135619888,0.04428416,96971.0,96970.0,0.0017376]
[1763135620087,0.18710057,96971.0,96970.0,0.0017376]
[1763135620345,0.20144286,96971.0,96970.0,0.0017376]
[1763135620558,0.13144286,96971.0,96970.0,0.0017376]
[1763135620802,0.53692777,96971.0,96970.0,0.0017376]
[1763135620994,0.51114687,96971.0,96970.0,0.0017376]
[1763135621203,0.49666196,96971.0,96970.0,0.0017376]
[1763135622243,0.49766196,96971.0,96970.0,0.0017376]
[1763135622681,0.49666196,96971.0,96970.0,0.0017376]
[1763135622814,0.5400807,96971.0,96970.0,0.0017376]
[1763135623021,0.58575125,96971.0,96970.0,0.0017376]
[1763135623404,0.49766196,96971.0,96970.0,0.0017376]
[1763135623609,0.49666196,96971.0,96970.0,0.0017376]
[1763135623817,0.49766196,96971.0,96970.0,0.0017376]
[1763135624029,0.39286542,96971.0,96970.0,0.0017376]
[1763135624225,0.39186542,96971.0,96970.0,0.0017376]
[1763135625707,0.43353196,96971.0,96970.0,0.0017376]
[1763135625880,0.39286542,96971.0,96970.0,0.0017376]
[1763135626301,5.39286542,96971.0,96970.0,0.0017376]
[1763135626879,5.06986542,96971.0,96970.0,0.0017376]
[1763135627418,5.39286542,96971.0,96970.0,0.0017376]
[1763135629555,5.39186542,96971.0,96970.0,0.0017376]
[1763135630720,5.32313542,96971.0,96970.0,0.0017376]
[1763135631130,5.32434542,96971.0,96970.0,0.0017376]
[1763135631758,5.37575061,96971.0,96970.0,0.0017376]
[1763135632356,5.32434542,96971.0,96970.0,0.0017376]
[1763135633494,5.32534542,96971.0,96970.0,0.0017376]
[1763135633701,5.36876416,96971.0,96970.0,0.0017376]
[1763135634307,5.32534542,96971.0,96970.0,0.0017376]
[1763135634483,5.39334542,96971.0,96970.0,0.0017376]
[1763135635481,5.39234542,96971.0,96970.0,0.0017376]
[1763135635953,5.39334542,96971.0,96970.0,0.0017376]
[1763135636353,5.39234542,96971.0,96970.0,0.0017376]
[1763135637139,5.39334542,96971.0,96970.0,0.0017376]
[1763135638541,5.07034542,96971.0,96970.0,0.0017376]
[1763135638762,5.00234542,96971.0,96970.0,0.0017376]
[1763135638914,5.39334542,96971.0,96970.0,0.0017376]
[1763135642664,5.32534542,96971.0,96970.0,0.0017376]
[1763135642862,5.32434542,96971.0,96970.0,0.0017376]
[1763135643073,5.32313542,96971.0,96970.0,0.0017376]
[1763135643476,5.00113542,96971.0,96970.0,0.3247376]
[1763135643673,5.00113542,96971.0,96953.0,0.02692933]
[1763135643674,0.41104627,96955.0,96953.0,0.02692933]
[1763135643876,0.41104627,96955.0,96940.0,0.01071565]
[1763135643877,0.30254627,96955.0,96945.0,0.36017627]
[1763135644098,0.30254627,96955.0,96940.0,0.30479654]
[1763135644099,0.30254627,96955.0,96953.0,0.10479654]
[1763135644312,0.01999998,96950.0,96932.0,0.068]
[1763135644494,0.01999998,96950.0,96930.0,0.36344546]
[1763135644495,0.04341874,96949.0,96930.0,0.36344546]
[1763135644701,0.323,96954.0,96922.0,0.04889916]
[1763135644905,0.323,96954.0,96940.0,0.36344546]
[1763135645112,0.30254627,96955.0,96940.0,0.36344546]
[1763135645324,0.30254627,96955.0,96941.0,0.00077363]
[1763135645457,0.30254627,96955.0,96940.0,0.36344546]
[1763135645665,0.30254627,96955.0,96942.0,0.10479654]
[1763135647595,0.39855627,96955.0,96931.0,0.10479654]
[1763135648014,0.13942874,96954.0,96931.0,0.10479654]
[1763135648219,0.04341874,96952.0,96931.0,0.10479654]
[1763135648529,0.068,96953.0,96931.0,0.10479654]
[1763135648530,0.65357875,96941.0,96931.0,0.10479654]
[1763135649134,0.04341874,96946.0,96931.0,0.10479654]
[1763135649300,0.65357875,96941.0,96931.0,0.10479654]
[1763135649715,0.65357875,96941.0,96931.0,0.10525063]
[1763135649922,0.01999998,96940.0,96931.0,0.10525063]
[1763135650158,0.04992,96932.0,96931.0,0.10525063]
[1763135650360,0.04992,96974.0,96932.0,0.323]
[1763135650560,0.04992,96974.0,96916.0,0.42779654]
[1763135650561,0.01999998,96940.0,96901.0,0.10479654]
[1763135650741,0.36366956,96920.0,96904.0,0.5]
[1763135650951,0.36366956,96914.0,96905.0,0.068]
[1763135651146,0.36366956,96920.0,96905.0,0.068]
[1763135651348,0.04341874,96938.0,96902.0,0.323]
[1763135651631,0.36366956,96915.0,96901.0,0.10493196]
[1763135651823,0.36366956,96915.0,96902.0,0.068]
[1763135652025,0.36366956,96912.0,96903.0,0.06796]
[1763135652284,0.04341874,96914.0,96904.0,0.06796]
[1763135652727,0.04341874,96913.0,96901.0,0.00013542]
[1763135652934,0.04341874,96913.0,96905.0,0.06796]
[1763135653083,0.36366956,96911.0,96902.0,0.068]
[1763135653287,0.04341874,96910.0,96901.0,0.00013542]
[1763135653494,0.06341872,96910.0,96902.0,0.068]
[1763135653694,0.04341874,96911.0,96904.0,0.001]
[1763135653942,0.01999998,96910.0,96904.0,0.001]
[1763135654080,0.04341874,96913.0,96905.0,0.068]
[1763135655101,0.04341874,96913.0,96901.0,0.00213542]
[1763135655350,0.06023,96902.0,96901.0,0.00213542]
[1763135655796,0.04341874,96909.0,96901.0,0.0019831]
[1763135656016,0.04341874,96910.0,96905.0,0.001]
[1763135656673,0.06341872,96910.0,96901.0,0.00013542]
[1763135656874,0.06341872,96910.0,96901.0,0.00113542]
[1763135657228,0.06341872,96910.0,96901.0,0.00013542]
[1763135657439,0.36366956,96911.0,96901.0,0.00013542]
[1763135657441,0.72733912,96911.0,96901.0,0.00013542]
[1763135657797,0.72733912,96911.0,96905.0,0.001]
[1763135658674,0.72733912,96911.0,96901.0,0.00013542]
[1763135659040,0.72733912,96911.0,96901.0,0.00113542]
[1763135659453,0.04341874,96922.0,96901.0,0.00013542]
[1763135659710,0.72733912,96911.0,96901.0,0.00013542]
[1763135659908,0.72733912,96911.0,96901.0,0.00113542]
[1763135660561,0.72733912,96911.0,96901.0,0.00013542]
[1763135660759,0.72733912,96911.0,96901.0,0.00113542]
[1763135660887,0.72733912,96911.0,96902.0,0.068]
[1763135661095,0.72733912,96911.0,96903.0,0.068]
[1763135661546,0.72733912,96911.0,96910.0,0.00160653]
[1763135661698,0.01999998,96920.0,96910.0,0.00160653]
[1763135661699,0.04341874,96919.0,96910.0,0.00160653]
[1763135661899,0.04341874,96919.0,96901.0,0.00113542]
[1763135661900,0.06023,96911.0,96901.0,0.00113542]
[1763135662112,0.42389956,96911.0,96902.0,0.068]
[1763135662411,0.42389956,96911.0,96901.0,0.00013542]
[1763135662412,0.10364874,96902.0,96901.0,0.00013542]
[1763135662615,0.10364874,96902.0,96901.0,0.00113542]
[1763135662816,0.10364874,96902.0,96901.0,0.0029831]
[1763135663352,0.04341874,96899.0,96886.0,0.03268]
[1763135663590,0.04341874,96895.0,96886.0,0.03268]
[1763135663806,0.04341874,96895.0,96892.0,0.00024112]
[1763135664018,0.04341874,96897.0,96892.0,0.00024112]
[1763135664442,0.0001358,96899.0,96892.0,0.00024112]
[1763135664800,0.04992,96893.0,96892.0,0.00024112]
[1763135665029,0.0001358,96899.0,96892.0,0.00024112]
[1763135665990,0.0001358,96899.0,96892.0,0.00124112]
[1763135666620,0.0001358,96899.0,96892.0,0.00024112]
[1763135667024,0.11015,96893.0,96871.0,0.10479654]
[1763135667234,0.72733912,96886.0,96871.0,0.10479654]
[1763135667435,0.72733912,96886.0,96877.0,0.068]
[1763135667681,0.72733912,96886.0,96871.0,0.10479654]
[1763135668140,0.11015,96877.0,96871.0,0.10479654]
[1763135668362,0.04992,96877.0,96871.0,0.10479654]
[1763135668575,0.15356874,96877.0,96876.0,0.00109]
[1763135669016,0.15356874,96877.0,96876.0,9e-05]
[1763135669234,0.15356874,96877.0,96876.0,0.00109]
[1763135669658,0.15356874,96877.0,96876.0,9e-05]
[1763135669891,0.47656874,96877.0,96876.0,9e-05]
[1763135670103,0.47656874,96877.0,96876.0,0.00109]
[1763135670578,0.04992,96877.0,96876.0,0.00109]
[1763135670779,0.04341874,96885.0,96876.0,0.00109]
[1763135671688,0.61040699,96886.0,96876.0,9e-05]
[1763135672133,0.11262,96877.0,96876.0,9e-05]
[1763135673452,0.15603874,96877.0,96876.0,9e-05]
[1763135673877,0.09230874,96877.0,96876.0,0.00051873]
[1763135674083,0.04889,96877.0,96876.0,0.00051873]
[1763135674325,0.09230874,96877.0,96876.0,0.00051873]
[1763135675003,0.15603874,96877.0,96876.0,0.00051873]
[1763135676044,0.04889,96877.0,96876.0,0.00051873]
[1763135676264,0.11262,96877.0,96876.0,0.00051873]
[1763135676972,0.15603874,96877.0,96876.0,0.00051873]
[1763135677182,0.47903874,96877.0,96876.0,0.00051873]
[1763135677820,0.15603874,96877.0,96876.0,0.00051873]
[1763135678044,0.09230874,96877.0,96876.0,0.00051873]
[1763135678266,0.15603874,96877.0,96876.0,0.00051873]
[1763135681008,0.11262,96877.0,96876.0,0.00051873]
[1763135681677,0.70980699,96886.0,96876.0,0.00051873]
[1763135681678,0.61040699,96886.0,96876.0,0.00051873]
[1763135681912,0.0994,96904.0,96876.0,9e-05]
[1763135682134,0.61040699,96890.0,96885.0,0.10479654]
[1763135682825,0.61040699,96890.0,96883.0,0.00024114]
[1763135682826,0.06373,96886.0,96883.0,0.00024114]
[1763135683250,0.0994,96893.0,96883.0,0.00024114]
[1763135683251,0.01999998,96890.0,96883.0,0.00024114]
[1763135683478,0.61040699,96895.0,96883.0,0.00024114]